fUST/lending_fUST_20251210
["ID","MTS","AMOUNT","RATE_DAILY","PERIOD"]
[398039863,1765327842755,-3846.0,0.00016134,2]
[398039864,1765327842764,-496.3254597,0.00016164,2]
[398039865,1765327842773,-397.5795005,0.00016164,2]
[398039866,1765327842782,-397.5795005,0.00016164,2]
[398039867,1765327842792,-801.9279438,0.00016164,2]
[398039868,1765327842801,-397.5795005,0.00016164,2]
[398039869,1765327842810,-397.5795005,0.00016164,2]
[398039870,1765327842819,-397.5795005,0.00016164,2]
[398039871,1765327842828,-397.5795005,0.00016164,2]
[398039872,1765327842837,-397.5795005,0.00016164,2]
[398039873,1765327842846,-397.5795005,0.00016164,2]
[398039874,1765327842855,-397.5795005,0.00016164,2]
[398039875,1765327842864,-397.5795005,0.00016164,2]
[398039876,1765327842873,-397.5795005,0.00016164,2]
[398039877,1765327842883,-397.5795005,0.00016164,2]
[398039878,1765327842892,-397.5795005,0.00016164,2]
[398039879,1765327842902,-397.5795005,0.00016164,2]
[398039880,1765327842912,-397.5795005,0.00016164,2]
[398039881,1765327842921,-500.0,0.00016164,2]
[398039882,1765327842930,-3846.0,0.00016189,2]
[398039883,1765327842939,-3846.0,0.00016204,2]
[398039884,1765327842948,-3846.0,0.00016266,2]
[398039885,1765327842958,-688.49839244,0.00016285,2]
[398039886,1765327842967,-3846.0,0.0001629,2]
[398039887,1765327842976,-3846.0,0.00016332,2]
[398039888,1765327842986,-3846.0,0.00016334,2]
[398039889,1765327842995,-3846.0,0.00016338,2]
[398039890,1765327843004,-3846.0,0.00016397,2]
[398039891,1765327843014,-3846.0,0.00016407,2]
[398039892,1765327843022,-3846.0,0.00016417,2]
[398039893,1765327843031,-633.254,0.0001642,2]
[398039894,1765327843041,-3846.0,0.00016436,2]
[398039895,1765327843050,-500.0,0.00016438,2]
[398039896,1765327843060,-508.260792,0.00016438,2]
[398039897,1765327843069,-508.260792,0.00016438,2]
[398039898,1765327843079,-508.260792,0.00016438,2]
[398039899,1765327843088,-508.260792,0.00016438,2]
[398039900,1765327843098,-508.260792,0.00016438,2]
[398039901,1765327843107,-508.260792,0.00016438,2]
[398039902,1765327843117,-508.260792,0.00016438,2]
[398039903,1765327843126,-508.260792,0.00016438,2]
[398039904,1765327843135,-508.260792,0.00016438,2]
[398039905,1765327843145,-508.260792,0.00016438,2]
[398039906,1765327843155,-508.260792,0.00016438,2]
[398039907,1765327843164,-508.260792,0.00016438,2]
[398039908,1765327843173,-508.260792,0.00016438,2]
[398039909,1765327843183,-508.260792,0.00016438,2]
[398039910,1765327843192,-508.260792,0.00016438,2]
[398039911,1765327843201,-508.260792,0.00016438,2]
[398039912,1765327843211,-508.260792,0.00016438,2]
[398039913,1765327843220,-508.260792,0.00016438,2]
[398039914,1765327843229,-508.260792,0.00016438,2]
[398039915,1765327843238,-508.260784,0.00016438,2]
[398039916,1765327843247,-163.54795743,0.00016438,2]
[398039917,1765327843257,-500.0,0.00016438,2]
[398039918,1765327843267,-3000.0,0.00016438,2]
[398039919,1765327843276,-3846.0,0.00016453,2]
[398039920,1765327843286,-660.0,0.00016476,2]
[398039921,1765327843296,-3846.0,0.00016489,2]
[398039922,1765327843305,-3846.0,0.00016494,2]
[398039923,1765327843315,-3846.0,0.00016502,2]
[398039924,1765327843325,-3846.0,0.00016556,2]
[398039925,1765327843335,-3846.0,0.00016557,2]
[398039926,1765327843347,-3500.0,0.0001656,2]
[398039927,1765327843359,-3500.0,0.0001656,2]
[398039928,1765327843369,-3500.0,0.0001656,2]
[398039929,1765327843379,-476.0,0.00016561,2]
[398039930,1765327843390,-465.0,0.00016561,2]
[398039931,1765327843401,-864.0,0.0001666,2]
[398039932,1765327843411,-500.0,0.00016712,2]
[398039933,1765327843421,-175.0,0.00016795,3]
[398039934,1765327843433,-713.97283296,0.00016833,2]
[398039935,1765327843443,-200.0,0.00016884,7]
[398039936,1765327843453,-200.0,0.00016884,7]
[398039937,1765327843464,-200.0,0.00016884,7]
[398039938,1765327843474,-500.0,0.00016986,2]
[398039939,1765327843484,-3500.0,0.00016986,2]
[398039940,1765327843495,-306.0,0.00016986,2]
[398039941,1765327843505,-153.0,0.00016986,2]
[398039942,1765327843516,-153.0,0.00016986,2]
[398039943,1765327843526,-153.0,0.00016986,2]
[398039944,1765327843535,-760.0,0.00017024,2]
[398039945,1765327843545,-2700.0,0.00017082,7]
[398039946,1765327843554,-4000.0,0.00017108,2]
[398039947,1765327843564,-1000.0,0.00017108,2]
[398039948,1765327843575,-4000.0,0.00017108,2]
[398039949,1765327843585,-500.0,0.0001726,2]
[398039950,1765327843596,-302.0621335,0.0001726,2]
[398039951,1765327843606,-302.0621335,0.0001726,2]
[398039952,1765327843616,-740.38982778,0.00017381,2]
[398039953,1765327843626,-10000.0,0.0001747,2]
[398039954,1765327843636,-37100.0,0.000175,2]
[398039955,1765327843645,-500.0,0.00017534,2]
[398039956,1765327843654,-4000.0,0.00017534,2]
[398039957,1765327843663,-860.0,0.00017572,2]
[398039958,1765327843672,-4500.0,0.00017656,2]
[398039959,1765327843683,-3000.0,0.00017656,2]
[398039960,1765327843692,-129925.65902201,0.000178,3]
[398039964,1765327844318,-553.35,0.000178,3]
[398039965,1765327844329,-2084.42943746,0.000178,3]
[398039966,1765327844440,-710.79716932,0.00011899,2]
[398039967,1765327844450,-2746.27373993,0.000178,3]
[398039968,1765327844460,-5231.23765986,0.000178,3]
[398039969,1765327844612,-500.0,0.00012233,2]
[398039970,1765327844621,-302.0621335,0.00014795,2]
[398039971,1765327844631,-153.0,0.00014795,2]
[398039972,1765327844640,-397.5795005,0.00016164,2]
[398039973,1765327844650,-238.40137381,0.000178,3]
[398039974,1765327844662,-3688.0,0.000178,3]
[398039979,1765327846052,-105532.64876693,0.000178,3]
[398039980,1765327846062,-347.30356795,0.000178,3]
[398039981,1765327846073,-500.0,0.00017808,2]
[398039982,1765327846083,-767.7842514,0.00017929,2]
[398039983,1765327846092,-312.382707,0.00017999,2]
[398039984,1765327846102,-5732.12729031,0.00018,5]
[398039985,1765327846111,-350.0,0.00018,2]
[398039986,1765327846120,-500.0,0.00018,7]
[398039987,1765327846129,-500.0,0.00018,7]
[398039988,1765327846139,-154.96,0.00018,7]
[398039989,1765327846148,-500.0,0.00018082,2]
[398039990,1765327846157,-4500.0,0.00018082,2]
[398039991,1765327846167,-153.0,0.00018082,2]
[398039992,1765327846176,-302.0621335,0.00018082,2]
[398039993,1765327846185,-302.0621335,0.00018082,2]
[398039994,1765327846194,-302.0621335,0.00018082,2]
[398039995,1765327846203,-302.0621335,0.00018082,2]
[398039996,1765327846213,-302.0621335,0.00018082,2]
[398039997,1765327846222,-302.0621335,0.00018082,2]
[398039998,1765327846231,-153.0,0.00018082,2]
[398039999,1765327846241,-302.0621335,0.00018082,2]
[398040000,1765327846250,-153.0,0.00018082,2]
[398040001,1765327846260,-960.0,0.0001812,2]
[398040002,1765327846269,-2700.0,0.00018178,7]
[398040003,1765327846278,-5000.0,0.00018204,2]
[398040004,1765327846288,-347.30356795,0.000183,3]
[398040005,1765327846297,-1000.0,0.00018327,2]
[398040006,1765327846305,-500.0,0.00018356,2]
[398040007,1765327846314,-150.0,0.000184,3]
[398040008,1765327846323,-796.19226871,0.00018477,2]
[398040009,1765327846335,-441.672227,0.00018493,2]
[398040010,1765327846344,-500.0,0.0001863,2]
[398040011,1765327846356,-5000.0,0.0001863,2]
[398040012,1765327846365,-1060.0,0.00018668,2]
[398040013,1765327846374,-5500.0,0.00018752,2]
[398040014,1765327846384,-200.0,0.00018866,7]
[398040015,1765327846394,-200.0,0.00018866,7]
[398040016,1765327846404,-200.0,0.00018866,7]
[398040017,1765327846414,-2000.0,0.000189,2]
[398040018,1765327846424,-439.50240612,0.000189,2]
[398040019,1765327846434,-347.30356795,0.000189,3]
[398040020,1765327846443,-500.0,0.00018904,2]
[398040021,1765327846452,-153.0,0.00018904,2]
[398040022,1765327846461,-153.0,0.00018904,2]
[398040023,1765327846471,-153.0,0.00018904,2]
[398040024,1765327846480,-153.0,0.00018904,2]
[398040025,1765327846490,-153.0,0.00018904,2]
[398040026,1765327846499,-153.0,0.00018904,2]
[398040027,1765327846508,-153.0,0.00018904,2]
[398040028,1765327846516,-153.0,0.00018904,2]
[398040029,1765327846526,-168.3522427,0.00018904,2]
[398040030,1765327846535,-153.0,0.00018904,2]
[398040031,1765327846544,-306.0,0.00018904,2]
[398040032,1765327846553,-153.0,0.00018904,2]
[398040033,1765327846563,-153.0,0.00018904,2]
[398040034,1765327846573,-413.3312335,0.00018904,2]
[398040035,1765327846582,-153.0,0.00018904,2]
[398040036,1765327846591,-153.0,0.00018904,2]
[398040037,1765327846600,-153.0,0.00018904,2]
[398040038,1765327846609,-153.0,0.00018904,2]
[398040039,1765327846619,-153.0,0.00018904,2]
[398040040,1765327846628,-153.0,0.00018904,2]
[398040041,1765327846637,-1194.0814046,0.00018904,2]
[398040042,1765327846647,-153.0,0.00018904,2]
[398040043,1765327846656,-177.0,0.00018986,3]
[398040044,1765327846665,-241.0,0.00019,2]
[398040045,1765327846674,-31500.0,0.00019,2]
[398040046,1765327846683,-500.0,0.00019,2]
[398040047,1765327846692,-500.0,0.00019,2]
[398040048,1765327846702,-500.0,0.00019,5]
[398040049,1765327846711,-130364.72190961,0.00019,2]
[398040050,1765327846720,-500.0,0.00019,2]
[398040051,1765327846729,-500.0,0.00019,5]
[398040052,1765327846739,-500.0,0.00019,2]
[398040053,1765327846748,-500.0,0.00019,2]
[398040054,1765327846757,-500.0,0.00019,2]
[398040055,1765327846766,-500.0,0.00019,5]
[398040056,1765327846775,-500.0,0.00019,2]
[398040057,1765327846784,-538.85256117,0.00019,2]
[398040058,1765327846793,-825.65138265,0.00019025,2]
[398040059,1765327846803,-500.0,0.00019178,2]
[398040060,1765327846812,-500.0,0.00019178,2]
[398040061,1765327846822,-500.0,0.00019178,2]
[398040062,1765327846831,-500.0,0.00019178,2]
[398040063,1765327846840,-500.0,0.00019178,2]
[398040064,1765327846849,-500.0,0.00019178,2]
[398040065,1765327846859,-500.0,0.00019178,2]
[398040066,1765327846867,-500.0,0.00019178,2]
[398040067,1765327846877,-500.0,0.00019178,2]
[398040068,1765327846886,-500.0,0.00019178,2]
[398040069,1765327846895,-500.0,0.00019178,2]
[398040070,1765327846905,-500.0,0.00019178,2]
[398040071,1765327846915,-500.0,0.00019178,2]
[398040072,1765327846924,-500.0,0.00019178,2]
[398040073,1765327846933,-500.0,0.00019178,2]
[398040074,1765327846943,-550.92316218,0.00019178,2]
[398040075,1765327846952,-500.0,0.00019178,2]
[398040076,1765327846961,-500.0,0.00019178,2]
[398040077,1765327846969,-151.0,0.00019178,2]
[398040078,1765327846979,-185.348712,0.00019178,2]
[398040079,1765327846989,-5500.0,0.00019178,2]
[398040080,1765327846999,-3319.83,0.000192,2]
[398040081,1765327847008,-3533.13,0.000192,2]
[398040082,1765327847017,-349.0,0.00019201,5]
[398040083,1765327847027,-1160.0,0.00019216,2]
[398040084,1765327847036,-2700.0,0.00019274,7]
[398040085,1765327847045,-600.0,0.00019281,2]
[398040086,1765327847054,-6000.0,0.000193,2]
[398040087,1765327847064,-475.0,0.00019409,2]
[398040088,1765327847073,-500.0,0.00019452,2]
[398040089,1765327847082,-600.0,0.00019481,2]
[398040090,1765327847092,-20000.0,0.000196,2]
[398040091,1765327847101,-500.0,0.000196,2]
[398040092,1765327847111,-500.0,0.000196,2]
[398040093,1765327847120,-500.0,0.000196,2]
[398040094,1765327847129,-500.0,0.000196,2]
[398040095,1765327847139,-500.0,0.000196,2]
[398040096,1765327847149,-500.0,0.000196,2]
[398040097,1765327847158,-500.0,0.000196,2]
[398040098,1765327847167,-500.0,0.000196,2]
[398040099,1765327847177,-500.0,0.000196,2]
[398040100,1765327847187,-500.0,0.000196,2]
[398040101,1765327847197,-500.0,0.000196,2]
[398040102,1765327847206,-500.0,0.000196,2]
[398040103,1765327847216,-500.0,0.000196,2]
[398040104,1765327847226,-500.0,0.000196,2]
[398040105,1765327847235,-500.0,0.000196,2]
[398040106,1765327847244,-500.0,0.000196,2]
[398040107,1765327847253,-500.0,0.000196,2]
[398040108,1765327847263,-500.0,0.000196,2]
[398040109,1765327847273,-500.0,0.000196,2]
[398040110,1765327847282,-500.0,0.000196,2]
[398040111,1765327847291,-424.25759119,0.000196,2]
[398040112,1765327847301,-600.0,0.00019682,2]
[398040113,1765327847310,-500.0,0.00019726,2]
[398040114,1765327847322,-6000.0,0.00019726,2]
[398040115,1765327847331,-168.2350191,0.00019726,2]
[398040116,1765327847340,-1260.0,0.00019764,2]
[398040117,1765327847353,-2000.0,0.00019778,7]
[398040118,1765327847363,-500.0,0.00019848,2]
[398040119,1765327847373,-475.0,0.00019848,2]
[398040120,1765327847382,-475.0,0.00019848,2]
[398040121,1765327847393,-475.0,0.00019848,2]
[398040122,1765327847402,-38000.0,0.0001985,3]
[398040123,1765327847411,-14927.43032339,0.00019859,3]
[398040124,1765327847425,-295.13886484,0.00019859,3]
[398040128,1765328042692,154.26,6.5e-05,2]
[398040131,1765328103312,154.26,6.5e-05,2]
[398040133,1765328162973,154.26,6.5e-05,2]
[398040134,1765328222600,154.26,6.5e-05,2]
[398040164,1765329032086,-404.05,0.0001,2]
[398040165,1765329032098,-1006.53,0.0001,2]
[398040182,1765329038236,-8589.42,0.0001,2]
[398040185,1765329038246,-156.91782491,0.00010078,2]
[398040186,1765329038256,-999.0,0.00011287,2]
[398040188,1765329038266,-506.603,0.00011564,2]
[398040190,1765329038275,-212.69339217,0.00011699,2]
[398040193,1765329038286,-500.0,0.00011699,2]
[398040194,1765329038295,-500.0,0.00011699,2]
[398040196,1765329038305,-500.0,0.00011699,2]
[398040198,1765329038315,-500.0,0.00011699,2]
[398040200,1765329038325,-500.0,0.00011699,2]
[398040201,1765329038335,-500.0,0.00011699,2]
[398040202,1765329038346,-500.0,0.00011699,2]
[398040203,1765329038356,-500.0,0.00011699,2]
[398040204,1765329038365,-218.7,0.00011699,2]
[398040205,1765329038375,-328.05,0.00011699,2]
[398040206,1765329038385,-480.16993406,0.00011699,2]
[398040207,1765329038395,-500.0,0.00011699,2]
[398040208,1765329038404,-500.0,0.00011699,2]
[398040209,1765329038414,-500.0,0.00011699,2]
[398040210,1765329038424,-500.0,0.00011699,2]
[398040211,1765329038434,-250.0,0.00011699,2]
[398040212,1765329038444,-363477.416185,0.000117,2]
[398040213,1765329038461,-438.95640779,0.000117,2]
[398040325,1765329046209,-5596.18588855,0.000117,2]
[398040762,1765329243323,190.2,6.5e-05,2]
[398040763,1765329244542,190.19,6.523e-05,2]
[398040764,1765329302363,190.2,6.5e-05,2]
[398040768,1765330185630,9888.28246836,0.0002,120]
[398040777,1765330232373,-150.0,6.827e-05,2]
[398040778,1765330232383,-158.70188216,6.916e-05,2]
[398040779,1765330232392,-150.0,7.152e-05,2]
[398040780,1765330232402,-150.0,7.477e-05,2]
[398040782,1765330232412,-150.0,7.803e-05,2]
[398040784,1765330232420,-150.0,8.128e-05,2]
[398040785,1765330232430,-150.0,8.453e-05,2]
[398040786,1765330232438,-150.0,8.778e-05,2]
[398040787,1765330232446,-187.26822095,8.916e-05,2]
[398040788,1765330232455,-150.0,9.103e-05,2]
[398040789,1765330232464,-300.0,9.999e-05,2]
[398040790,1765330232473,-1200.0,9.999e-05,2]
[398040791,1765330232482,-10000.0,0.0001,2]
[398040792,1765330232491,-347.30356795,0.00010822,2]
[398040793,1765330232500,-215.83455974,0.00010916,2]
[398040794,1765330232509,-500.0,0.00011599,2]
[398040795,1765330232517,-500.0,0.00011599,2]
[398040796,1765330232526,-195.29509102,0.00011599,2]
[398040797,1765330232535,-461.11895384,0.00011599,2]
[398040798,1765330232544,-500.0,0.00011599,2]
[398040799,1765330232553,-500.0,0.00011599,2]
[398040800,1765330232561,-500.0,0.00011599,2]
[398040801,1765330232570,-199.41322547,0.00011599,2]
[398040802,1765330232579,-500.0,0.00011599,2]
[398040803,1765330232588,-500.0,0.00011599,2]
[398040804,1765330232596,-500.0,0.00011599,2]
[398040805,1765330232605,-500.0,0.00011599,2]
[398040806,1765330232614,-500.0,0.00011599,2]
[398040807,1765330232622,-12918.11309279,0.000116,2]
[398040808,1765330232633,-534.54761844,0.000116,2]
[398041001,1765330238539,-150.0,6.819e-05,2]
[398041003,1765330238549,-4111.27661584,0.000116,2]
[398041004,1765330238561,-2552.211439,0.000116,2]
[398041005,1765330238572,-488.04394154,0.000116,2]
[398041006,1765330238584,-1065.128561,0.000116,2]
[398041007,1765330238596,-1618.48555285,0.000116,2]
[398041008,1765330238607,-418.49770858,0.000116,2]
[398041034,1765330240572,-16034.46377026,0.000116,2]
[398041042,1765330240683,-6080.2649987,0.000116,2]
[398041043,1765330240695,-62200.47746692,0.000116,2]
[398041051,1765330243537,-3407.68,0.000116,2]
[398041052,1765330243645,-894.21,0.000116,2]
[398041073,1765330246438,-358.49902386,0.000116,2]
[398041079,1765330442207,156.1,6.5e-05,2]
[398041081,1765330444527,156.07,6.523e-05,2]
[398041082,1765330505648,156.1,6.5e-05,2]
[398041084,1765330565290,156.1,6.5e-05,2]
[398041087,1765330624280,156.1,6.5e-05,2]
[398041088,1765330684675,156.1,6.5e-05,2]
[398041089,1765330735835,2000.0,0.00011,6]
[398041090,1765330953125,8194.7780891,0.0001414,29]
[398041092,1765331222507,151.58,6.5e-05,2]
[398041093,1765331230798,151.46,6.523e-05,2]
[398041094,1765331291632,151.58,6.5e-05,2]
[398041095,1765331349391,151.58,6.5e-05,2]
[398041098,1765331410631,151.58,6.5e-05,2]
[398041148,1765331438514,-515.0,6.7e-05,2]
[398041149,1765331438529,-150.0,6.739e-05,2]
[398041150,1765331438544,-151.58,6.8e-05,2]
[398041151,1765331438558,-153.21157379,6.877e-05,2]
[398041152,1765331438573,-151.58,7e-05,2]
[398041153,1765331438586,-150.0,7.104e-05,2]
[398041154,1765331438600,-151.58,7.2e-05,2]
[398041155,1765331438613,-151.58,7.4e-05,2]
[398041156,1765331438627,-150.0,7.431e-05,2]
[398041157,1765331438641,-151.58,7.7e-05,2]
[398041158,1765331438655,-1200.0,7.753e-05,2]
[398041159,1765331438669,-2470.49735508,7.754e-05,2]
[398041160,1765331438685,-1259.825972,7.754e-05,2]
[398041161,1765331438701,-1333.617232,7.754e-05,2]
[398041162,1765331438718,-291.13024207,7.754e-05,2]
[398041163,1765331438733,-2593.81310178,7.754e-05,2]
[398041164,1765331438750,-9554.18924997,7.754e-05,2]
[398041165,1765331438767,-558.0997,7.754e-05,2]
[398041172,1765331440891,-1190.02945671,7.754e-05,2]
[398041173,1765331440904,-150.0,7.754e-05,2]
[398041174,1765331440918,-151.58,7.9e-05,2]
[398041175,1765331440932,-150.0,8.077e-05,2]
[398041176,1765331440944,-151.58,8.1e-05,2]
[398041177,1765331440957,-150.0,8.343e-05,2]
[398041178,1765331440970,-151.58,8.4e-05,2]
[398041179,1765331440983,-151.58,8.6e-05,2]
[398041180,1765331440997,-150.0,8.664e-05,2]
[398041181,1765331441011,-151.58,8.8e-05,2]
[398041182,1765331441024,-180.78965707,8.877e-05,2]
[398041183,1765331441038,-150.0,8.985e-05,2]
[398041184,1765331441051,-151.58,9e-05,2]
[398041185,1765331441064,-151.58,9.3e-05,2]
[398041186,1765331441078,-154.43636462,9.306e-05,2]
[398041187,1765331441094,-300.0,9.306e-05,2]
[398041188,1765331441109,-1200.0,9.4e-05,2]
[398041189,1765331441133,-202.0,9.4e-05,2]
[398041190,1765331441155,-151.58,9.5e-05,2]
[398041191,1765331441173,-151.58,9.7e-05,2]
[398041192,1765331441192,-10000.0,0.0001,2]
[398041193,1765331441209,-151.58,0.0001,2]
[398041194,1765331441226,-151.58,0.000102,2]
[398041195,1765331441242,-304.0,0.00010237,2]
[398041196,1765331441258,-151.58,0.000104,2]
[398041197,1765331441273,-151.58,0.000106,2]
[398041198,1765331441288,-208.36774036,0.00010877,2]
[398041199,1765331441303,-151.58,0.000109,2]
[398041200,1765331441319,-999.0,0.00010959,2]
[398041201,1765331441333,-2000.0,0.00010999,3]
[398041202,1765331441347,-151.58,0.000111,2]
[398041203,1765331441360,-289.0,0.000115,2]
[398041204,1765331441374,-301.29133901,0.00011549,2]
[398041205,1765331441389,-246.1379399,0.00011597,2]
[398041206,1765331441402,-405.745,0.00011597,2]
[398041207,1765331441416,-2000.0,0.00011599,2]
[398041208,1765331441430,-2000.0,0.000116,2]
[398041209,1765331441443,-2000.0,0.000121,3]
[398041210,1765331441457,-2000.0,0.000128,4]
[398041211,1765331441470,-500.0,0.00012877,2]
[398041212,1765331441483,-235.94582364,0.00012877,2]
[398041213,1765331441497,-504.40065212,0.00013151,2]
[398041214,1765331441510,-500.0,0.00013273,2]
[398041215,1765331441523,-475.0,0.000134,2]
[398041216,1765331441536,-475.0,0.000134,2]
[398041217,1765331441549,-475.0,0.000135,2]
[398041218,1765331441562,-151.0,0.000135,2]
[398041219,1765331441575,-500.0,0.00013597,2]
[398041220,1765331441595,-500.0,0.00013597,2]
[398041221,1765331441612,-327.10015416,0.00013597,2]
[398041222,1765331441628,-500.0,0.00013597,2]
[398041223,1765331441644,-500.0,0.00013597,2]
[398041224,1765331441658,-500.0,0.00013597,2]
[398041225,1765331441673,-500.0,0.00013597,2]
[398041226,1765331441689,-500.0,0.00013597,2]
[398041227,1765331441704,-500.0,0.00013597,2]
[398041228,1765331441719,-548.14375655,0.00013597,2]
[398041229,1765331441733,-500.0,0.00013597,2]
[398041230,1765331441748,-500.0,0.00013597,2]
[398041231,1765331441762,-194.22625862,0.00013597,2]
[398041232,1765331441776,-500.0,0.00013597,2]
[398041233,1765331441789,-379.85694413,0.00013597,2]
[398041234,1765331441804,-197.7326596,0.00013597,2]
[398041235,1765331441817,-57719.6478067,0.00013598,2]
[398041243,1765331443749,-3682.0,0.00013598,2]
[398041245,1765331446472,-511.23,0.00013598,2]
[398041246,1765331548089,161.37,0.0002,120]
[398041247,1765331576123,161.0,0.00014,30]
[398041257,1765332178488,155.0,0.0002,120]
[398041293,1765332632507,-150.0,6.734e-05,2]
[398041295,1765332632517,-150.0,7.054e-05,2]
[398041297,1765332632526,-30.25242726,7.375e-05,2]
[398041300,1765332632539,-119.74757274,7.375e-05,2]
[398041301,1765332632549,-150.85,7.708e-05,2]
[398041303,1765332632558,-188.57,8.029e-05,2]
[398041304,1765332632567,-226.28,8.35e-05,2]
[398041305,1765332632577,-793.14510862,8.481e-05,2]
[398041306,1765332632586,-263.99,8.671e-05,2]
[398041307,1765332632595,-177.28695472,8.787e-05,2]
[398041308,1765332632604,-282.61263328,8.992e-05,2]
[398041309,1765332632631,-19.09736672,8.992e-05,2]
[398041310,1765332632641,-793.14510862,9.061e-05,2]
[398041312,1765332632649,-339.42,9.313e-05,2]
[398041314,1765332632659,-377.13,9.635e-05,2]
[398041316,1765332632667,-793.14510862,9.642e-05,2]
[398041319,1765332632676,-481.0,9.998e-05,2]
[398041322,1765332632685,-300.0,9.999e-05,2]
[398041325,1765332632694,-300.0,9.999e-05,2]
[398041328,1765332632702,-1866.36252212,0.0001,2]
[398041331,1765332632713,-304.64976602,0.0001,2]
[398041333,1765332632724,-4214.58625387,0.0001,2]
[398041335,1765332632735,-3614.40145799,0.0001,2]
[398041337,1765332632744,-300.0,0.00010199,2]
[398041339,1765332632752,-300.0,0.00010199,2]
[398041341,1765332632762,-793.14510862,0.00010222,2]
[398041344,1765332632771,-600.0,0.00010402,2]
[398041345,1765332632779,-215.44,0.00010739,2]
[398041346,1765332632788,-204.33072747,0.00010787,2]
[398041347,1765332632797,-793.14510862,0.00010802,2]
[398041348,1765332632806,-420.0,0.00010999,2]
[398041349,1765332632815,-793.14510862,0.00011382,2]
[398041350,1765332632823,-720.0,0.00011442,2]
[398041351,1765332632832,-793.93825373,0.00011962,2]
[398041352,1765332632841,-2000.0,0.00012099,3]
[398041353,1765332632849,-864.0,0.00012586,2]
[398041354,1765332632858,-479.30392831,0.00012782,7]
[398041355,1765332632867,-231.37450022,0.00012787,2]
[398041356,1765332632876,-2000.0,0.00012799,3]
[398041357,1765332632884,-7646.7012933,0.00012866,2]
[398041358,1765332632893,-174.9693832,0.00012866,2]
[398041359,1765332632901,-3911.97940293,0.000129,2]
[398041360,1765332632910,-153.93156371,0.00013028,2]
[398041361,1765332632919,-169.75347461,0.00013028,2]
[398041362,1765332632928,-679.01389845,0.00013028,2]
[398041363,1765332632937,-615.72625485,0.00013028,2]
[398041364,1765332632946,-221.44601049,0.00013028,2]
[398041365,1765332632954,-500.0,0.00013028,2]
[398041366,1765332632963,-324.596,0.00013028,2]
[398041367,1765332632972,-1385.38407341,0.00013083,2]
[398041368,1765332632981,-500.0,0.00013273,2]
[398041369,1765332632990,-500.0,0.00013273,2]
[398041370,1765332632999,-500.0,0.00013273,2]
[398041371,1765332633008,-500.0,0.00013273,2]
[398041372,1765332633017,-500.0,0.00013273,2]
[398041373,1765332633026,-500.0,0.00013273,2]
[398041374,1765332633035,-500.0,0.00013273,2]
[398041375,1765332633043,-500.0,0.00013302,2]
[398041376,1765332633052,-1527.7812715,0.00013303,2]
[398041377,1765332633070,-796.82221216,0.00013306,7]
[398041378,1765332633088,-158.69823908,0.00013326,2]
[398041379,1765332633106,-3187.75733216,0.00013329,2]
[398041380,1765332633124,-394.48105105,0.00013395,2]
[398041381,1765332633144,-1029.01033736,0.00013476,2]
[398041382,1765332633160,-500.0,0.00013494,2]
[398041383,1765332633177,-500.0,0.00013494,2]
[398041384,1765332633192,-500.0,0.00013494,2]
[398041385,1765332633207,-500.0,0.00013494,2]